fUSD/lending_fUSD_20240714
["ID","MTS","AMOUNT","RATE_DAILY","PERIOD"]
[332065224,1720947076145,-161.565756,0.00013863,2]
[332065225,1720947076154,-5987.23,0.00013863,2]
[332065226,1720947076164,-500.0,0.00013863,2]
[332065227,1720947076174,-2156.22,0.00013863,2]
[332065228,1720947076186,-500.0,0.00013863,2]
[332065229,1720947076197,-1679.1,0.00013863,2]
[332065230,1720947076208,-8434.82,0.00013863,2]
[332065231,1720947076218,-161.565756,0.00013863,2]
[332065232,1720947076228,-161.565756,0.00013863,2]
[332065233,1720947076239,-851.76,0.00013863,2]
[332065234,1720947076249,-1079.25,0.00013863,2]
[332065235,1720947076259,-1281.65,0.00013863,2]
[332065236,1720947076268,-708.04,0.00013863,2]
[332065237,1720947076278,-500.0,0.00013863,2]
[332065238,1720947076287,-679.39,0.00013863,2]
[332065239,1720947076296,-500.0,0.00013863,2]
[332065240,1720947076305,-911.76,0.00013863,2]
[332065241,1720947076314,-1593.31861075,0.00013863,2]
[332065242,1720947076573,-26.15138925,0.00013863,2]
[332065243,1720947076584,-810.45,0.00013863,2]
[332065244,1720947076594,-500.0,0.00013863,2]
[332065245,1720947076603,-500.0,0.00013863,2]
[332065246,1720947076614,-500.0,0.00013863,2]
[332065247,1720947076623,-504.17,0.00013863,2]
[332065248,1720947076634,-670.51,0.00013863,2]
[332065249,1720947076644,-500.0,0.00013863,2]
[332065250,1720947076653,-500.0,0.00013863,2]
[332065251,1720947076663,-500.0,0.00013863,2]
[332065252,1720947076672,-732.36,0.00013863,2]
[332065253,1720947076683,-500.0,0.00013863,2]
[332065254,1720947076693,-509.0,0.0001389,2]
[332065255,1720947076703,-503.62,0.0001389,2]
[332065256,1720947076716,-503.62,0.0001389,2]
[332065257,1720947076726,-503.62,0.0001389,2]
[332065258,1720947076736,-1257.87263473,0.00013899,2]
[332065259,1720947076746,-227.3638533,0.00013899,2]
[332065260,1720947076757,-155.0,0.00013899,2]
[332065261,1720947076770,-169.89534745,0.000139,2]
[332065262,1720947076781,-500.0,0.000139,2]
[332065263,1720947076791,-151.0,0.000139,2]
[332065264,1720947076800,-151.0,0.000139,2]
[332065265,1720947076809,-151.0,0.000139,2]
[332065266,1720947076819,-151.0,0.000139,2]
[332065267,1720947076828,-151.0,0.000139,2]
[332065268,1720947076837,-255.5285937,0.000139,2]
[332065269,1720947076846,-151.0,0.000139,2]
[332065270,1720947076856,-151.0,0.000139,2]
[332065271,1720947076866,-151.0,0.000139,2]
[332065272,1720947076876,-151.0,0.000139,2]
[332065273,1720947076886,-151.0,0.000139,2]
[332065274,1720947076896,-244.186025,0.000139,2]
[332065275,1720947076905,-244.186025,0.000139,2]
[332065276,1720947076915,-151.0,0.000139,2]
[332065277,1720947076925,-151.0,0.000139,2]
[332065278,1720947076934,-151.0,0.000139,2]
[332065279,1720947076945,-297.936491,0.000139,2]
[332065280,1720947076954,-297.936491,0.000139,2]
[332065281,1720947076964,-151.0,0.000139,2]
[332065282,1720947076974,-355.629917,0.000139,2]
[332065283,1720947076983,-355.629917,0.000139,2]
[332065284,1720947076994,-151.0,0.000139,2]
[332065285,1720947077004,-151.0,0.000139,2]
[332065286,1720947077015,-200.463705,0.000139,2]
[332065287,1720947077025,-200.463705,0.000139,2]
[332065288,1720947077034,-151.0,0.000139,2]
[332065289,1720947077043,-11161.66724048,0.000139,2]
[332065290,1720947077062,-48239.18611492,0.000139,2]
[332065291,1720947077071,-151.0,0.000139,2]
[332065292,1720947077081,-151.0,0.000139,2]
[332065293,1720947077091,-151.0,0.000139,2]
[332065294,1720947077101,-334.57288594,0.000139,2]
[332065295,1720947077111,-1445.92629086,0.00013914,2]
[332065296,1720947077121,-300.0,0.00013916,2]
[332065297,1720947077131,-300.0,0.00013916,2]
[332065298,1720947077141,-500.0,0.00013917,2]
[332065299,1720947077151,-152.170864,0.00013917,2]
[332065300,1720947077161,-993.31,0.00013917,2]
[332065301,1720947077172,-500.0,0.00013917,2]
[332065302,1720947077182,-500.0,0.00013917,2]
[332065303,1720947077192,-500.0,0.00013917,2]
[332065304,1720947077201,-606.07,0.00013917,2]
[332065305,1720947077212,-500.0,0.00013917,2]
[332065306,1720947077222,-886.23,0.00013917,2]
[332065307,1720947077233,-603.6,0.00013917,2]
[332065308,1720947077243,-500.0,0.00013917,2]
[332065309,1720947077253,-500.0,0.00013917,2]
[332065310,1720947077264,-500.0,0.00013917,2]
[332065311,1720947077274,-500.0,0.00013917,2]
[332065312,1720947077283,-500.0,0.00013917,2]
[332065313,1720947077293,-500.0,0.00013917,2]
[332065314,1720947077302,-616.45,0.00013917,2]
[332065315,1720947077311,-862.26,0.00013917,2]
[332065316,1720947077321,-500.0,0.00013917,2]
[332065317,1720947077331,-500.0,0.00013917,2]
[332065318,1720947077341,-500.0,0.00013917,2]
[332065319,1720947077351,-571.77,0.00013917,2]
[332065320,1720947077362,-500.0,0.00013917,2]
[332065321,1720947077371,-227.9163749,0.00013917,2]
[332065322,1720947077381,-500.0,0.00013917,2]
[332065323,1720947077390,-569.97164797,0.00013917,2]
[332065324,1720947077399,-772.22,0.00013917,2]
[332065325,1720947077410,-533.44,0.00013917,2]
[332065326,1720947077420,-500.0,0.00013917,2]
[332065327,1720947077430,-500.0,0.00013917,2]
[332065328,1720947077440,-500.0,0.00013917,2]
[332065329,1720947077449,-849.41,0.00013917,2]
[332065330,1720947077459,-535.95,0.00013917,2]
[332065331,1720947077469,-500.0,0.00013917,2]
[332065332,1720947077479,-500.0,0.00013917,2]
[332065333,1720947077492,-508.66,0.00013917,2]
[332065334,1720947077502,-530.35,0.00013917,2]
[332065335,1720947077513,-500.0,0.00013917,2]
[332065336,1720947077523,-857.43,0.00013917,2]
[332065337,1720947077532,-500.0,0.00013917,2]
[332065338,1720947077542,-500.0,0.00013917,2]
[332065339,1720947077552,-565.96,0.00013917,2]
[332065340,1720947077563,-513.28,0.00013917,2]
[332065341,1720947077572,-500.0,0.00013917,2]
[332065342,1720947077582,-647.73,0.00013917,2]
[332065343,1720947077591,-581.66,0.00013917,2]
[332065344,1720947077600,-500.0,0.00013917,2]
[332065345,1720947077610,-522.48,0.00013917,2]
[332065346,1720947077619,-435.20451239,0.00013917,2]
[332065347,1720947077629,-500.0,0.00013917,2]
[332065348,1720947077638,-500.0,0.00013917,2]
[332065349,1720947077648,-500.0,0.00013917,2]
[332065350,1720947077658,-890.99,0.00013917,2]
[332065351,1720947077667,-1261.33,0.00013917,2]
[332065352,1720947077677,-500.0,0.00013917,2]
[332065353,1720947077687,-151.0,0.00013917,2]
[332065354,1720947077696,-500.0,0.00013917,2]
[332065355,1720947077705,-500.0,0.00013917,2]
[332065356,1720947077715,-500.0,0.00013917,2]
[332065357,1720947077725,-500.0,0.00013917,2]
[332065358,1720947077735,-733.78,0.00013917,2]
[332065359,1720947077744,-651.47,0.00013917,2]
[332065360,1720947077754,-1112.55,0.00013917,2]
[332065361,1720947077765,-963.11,0.00013917,2]
[332065362,1720947077774,-642.95,0.00013917,2]
[332065363,1720947077784,-500.0,0.00013917,2]
[332065364,1720947077793,-151.0,0.00013917,2]
[332065365,1720947077803,-558.4,0.00013917,2]
[332065366,1720947077813,-500.0,0.00013917,2]
[332065367,1720947077822,-500.0,0.00013917,2]
[332065368,1720947077832,-821.37,0.00013917,2]
[332065369,1720947077842,-1109.67,0.00013917,2]
[332065370,1720947077852,-557.08,0.00013917,2]
[332065371,1720947077861,-500.0,0.00013917,2]
[332065372,1720947077871,-500.0,0.00013917,2]
[332065373,1720947077880,-151.0,0.00013917,2]
[332065374,1720947077890,-527.01,0.00013917,2]
[332065375,1720947077900,-557.72,0.00013917,2]
[332065376,1720947077910,-500.0,0.00013917,2]
[332065377,1720947077919,-500.0,0.00013917,2]
[332065378,1720947077929,-336.66487104,0.00013917,2]
[332065379,1720947077939,-500.0,0.00013917,2]
[332065380,1720947077949,-546.97,0.00013917,2]
[332065381,1720947077959,-1415.22,0.00013917,2]
[332065382,1720947077968,-995.56,0.00013917,2]
[332065383,1720947077978,-500.0,0.00013917,2]
[332065384,1720947077988,-756.58,0.00013917,2]
[332065385,1720947077998,-500.0,0.00013917,2]
[332065386,1720947078008,-500.0,0.00013917,2]
[332065387,1720947078021,-1272.63,0.00013917,2]
[332065388,1720947078030,-500.0,0.00013917,2]
[332065389,1720947078040,-500.0,0.00013917,2]
[332065390,1720947078050,-500.0,0.00013917,2]
[332065391,1720947078060,-816.76,0.00013917,2]
[332065392,1720947078069,-298.68519695,0.00013917,2]
[332065393,1720947078079,-1002.26,0.00013917,2]
[332065394,1720947078089,-670.68,0.00013917,2]
[332065395,1720947078099,-735.91,0.00013917,2]
[332065396,1720947078108,-979.24,0.00013917,2]
[332065397,1720947078118,-500.0,0.00013917,2]
[332065398,1720947078129,-500.0,0.00013917,2]
[332065399,1720947078138,-500.0,0.00013917,2]
[332065400,1720947078148,-1406.25,0.00013917,2]
[332065401,1720947078158,-500.0,0.00013917,2]
[332065402,1720947078168,-500.0,0.00013917,2]
[332065403,1720947078177,-1016.13,0.00013917,2]
[332065404,1720947078187,-1550.8,0.00013917,2]
[332065405,1720947078197,-1164.55,0.00013917,2]
[332065406,1720947078206,-500.0,0.00013917,2]
[332065407,1720947078216,-602.2,0.00013917,2]
[332065408,1720947078225,-1311.46,0.00013917,2]
[332065409,1720947078235,-604.04,0.00013917,2]
[332065410,1720947078244,-500.0,0.00013917,2]
[332065411,1720947078254,-500.0,0.00013917,2]
[332065412,1720947078267,-457.00769742,0.00013917,2]
[332065413,1720947078278,-500.0,0.00013917,2]
[332065414,1720947078287,-500.0,0.00013917,2]
[332065415,1720947078297,-500.0,0.00013917,2]
[332065416,1720947078307,-573.09,0.00013917,2]
[332065417,1720947078316,-1460.3,0.00013917,2]
[332065418,1720947078326,-829.1,0.00013917,2]
[332065419,1720947078337,-500.0,0.00013917,2]
[332065420,1720947078346,-1642.17,0.00013917,2]
[332065421,1720947078356,-500.0,0.00013917,2]
[332065422,1720947078365,-500.0,0.00013917,2]
[332065423,1720947078375,-500.0,0.00013917,2]
[332065424,1720947078385,-500.0,0.00013917,2]
[332065425,1720947078394,-1210.98,0.00013917,2]
[332065426,1720947078404,-858.66,0.00013917,2]
[332065427,1720947078413,-759.33,0.00013917,2]
[332065428,1720947078423,-675.59,0.00013917,2]
[332065429,1720947078433,-986.53,0.00013917,2]
[332065430,1720947078443,-609.44,0.00013917,2]
[332065431,1720947078453,-1851.66,0.00013917,2]
[332065432,1720947078462,-500.0,0.00013917,2]
[332065433,1720947078471,-564.92,0.00013917,2]
[332065434,1720947078482,-500.0,0.00013917,2]
[332065435,1720947078493,-590.1,0.00013917,2]
[332065436,1720947078503,-1347.43,0.00013917,2]
[332065437,1720947078515,-1099.72,0.00013917,2]
[332065438,1720947078526,-920.66,0.00013917,2]
[332065439,1720947078537,-880.89,0.00013917,2]
[332065440,1720947078548,-500.0,0.00013917,2]
[332065441,1720947078560,-151.0,0.00013917,2]
[332065442,1720947078571,-551.34,0.00013917,2]
[332065443,1720947078654,-500.0,0.00013917,2]
[332065444,1720947078665,-1945.93,0.00013917,2]
[332065445,1720947078675,-151.0,0.00013917,2]
[332065446,1720947078686,-896.21,0.00013917,2]
[332065447,1720947078696,-1044.03,0.00013917,2]
[332065448,1720947078706,-151.0,0.00013917,2]
[332065449,1720947078717,-500.0,0.00013917,2]
[332065450,1720947078727,-500.0,0.00013917,2]
[332065451,1720947078738,-500.0,0.00013917,2]
[332065452,1720947078748,-500.0,0.00013917,2]
[332065453,1720947078758,-500.0,0.00013917,2]
[332065454,1720947078771,-798.5,0.00013917,2]
[332065455,1720947078782,-151.0,0.00013917,2]
[332065456,1720947078792,-500.0,0.00013917,2]
[332065457,1720947078802,-892.29,0.00013917,2]
[332065458,1720947078812,-674.09,0.00013917,2]
[332065459,1720947078822,-500.0,0.00013917,2]
[332065460,1720947078832,-500.0,0.00013917,2]
[332065461,1720947078842,-1308.83,0.00013917,2]
[332065462,1720947078852,-151.0,0.00013917,2]
[332065463,1720947078862,-500.0,0.00013917,2]
[332065464,1720947078872,-1277.01,0.00013917,2]
[332065465,1720947078882,-500.0,0.00013917,2]
[332065466,1720947078892,-773.51,0.00013917,2]
[332065467,1720947078902,-500.0,0.00013917,2]
[332065468,1720947078912,-500.0,0.00013917,2]
[332065469,1720947078922,-500.0,0.00013917,2]
[332065470,1720947078931,-500.0,0.00013917,2]
[332065471,1720947078942,-1235.94,0.00013917,2]
[332065472,1720947078951,-1123.01,0.00013917,2]
[332065473,1720947078962,-837.86,0.00013917,2]
[332065474,1720947078971,-711.96,0.00013917,2]
[332065475,1720947078981,-500.18,0.00013917,2]
[332065476,1720947078991,-1136.35,0.00013917,2]
[332065477,1720947079000,-1609.9,0.00013917,2]
[332065478,1720947079009,-526.7,0.00013917,2]
[332065479,1720947079020,-916.2,0.00013917,2]
[332065480,1720947079029,-506.39591128,0.00013917,2]
[332065481,1720947079039,-500.0,0.00013917,2]
[332065482,1720947079048,-564.4,0.00013917,2]
[332065483,1720947079058,-500.0,0.00013917,2]
[332065484,1720947079067,-500.0,0.00013917,2]
[332065485,1720947079077,-533.2,0.00013917,2]
[332065486,1720947079086,-500.0,0.00013917,2]
[332065487,1720947079096,-500.0,0.00013917,2]
[332065488,1720947079106,-575.42843317,0.00013917,2]
[332065489,1720947079116,-1141.86,0.00013917,2]
[332065490,1720947079125,-500.0,0.00013917,2]
[332065491,1720947079135,-608.99,0.00013917,2]
[332065492,1720947079144,-500.0,0.00013917,2]
[332065493,1720947079153,-1775.32,0.00013917,2]
[332065494,1720947079163,-500.0,0.00013917,2]
[332065495,1720947079172,-592.67,0.00013917,2]
[332065496,1720947079181,-500.0,0.00013917,2]
[332065497,1720947079191,-1440.72,0.00013917,2]
[332065498,1720947079200,-500.0,0.00013917,2]
[332065499,1720947079209,-1071.83,0.00013917,2]
[332065500,1720947079218,-1278.84,0.00013917,2]
[332065501,1720947079227,-1050.62,0.00013917,2]
[332065502,1720947079237,-1032.99,0.00013917,2]
[332065503,1720947079246,-229.55718198,0.00013917,2]
[332065504,1720947079256,-1860.15,0.00013917,2]
[332065505,1720947079267,-1390.63,0.00013917,2]
[332065506,1720947079276,-830.59,0.00013917,2]
[332065507,1720947079286,-500.0,0.00013917,2]
[332065508,1720947079295,-775.34,0.00013917,2]
[332065509,1720947079305,-552.05,0.00013917,2]
[332065510,1720947079314,-1096.04,0.00013917,2]
[332065511,1720947079324,-500.0,0.00013917,2]
[332065512,1720947079333,-948.54,0.00013917,2]
[332065513,1720947079342,-500.0,0.00013917,2]
[332065514,1720947079352,-694.55,0.00013917,2]
[332065515,1720947079361,-848.72,0.00013917,2]
[332065516,1720947079371,-500.0,0.00013917,2]
[332065517,1720947079380,-500.0,0.00013917,2]
[332065518,1720947079389,-500.0,0.00013917,2]
[332065519,1720947079399,-992.38,0.00013917,2]
[332065520,1720947079409,-565.78,0.00013917,2]
[332065521,1720947079418,-1781.92,0.00013917,2]
[332065522,1720947079427,-500.0,0.00013917,2]
[332065523,1720947079436,-897.05,0.00013917,2]
[332065524,1720947079446,-1360.9,0.00013917,2]
[332065525,1720947079455,-696.39,0.00013917,2]
[332065526,1720947079465,-1301.35,0.00013917,2]
[332065527,1720947079474,-500.0,0.00013917,2]
[332065528,1720947079488,-500.0,0.00013917,2]
[332065529,1720947079498,-823.13,0.00013917,2]
[332065530,1720947079507,-500.0,0.00013917,2]
[332065531,1720947079519,-1622.83,0.00013917,2]
[332065532,1720947079529,-507.26,0.00013917,2]
[332065533,1720947079538,-244.186025,0.00013917,2]
[332065534,1720947079548,-500.0,0.00013917,2]
[332065535,1720947079557,-500.0,0.00013917,2]
[332065536,1720947079567,-244.186025,0.00013917,2]
[332065537,1720947079576,-1935.6,0.00013917,2]
[332065538,1720947079586,-1375.77,0.00013917,2]
[332065539,1720947079595,-585.8,0.00013917,2]
[332065540,1720947079604,-500.0,0.00013917,2]
[332065541,1720947079614,-647.64,0.00013917,2]
[332065542,1720947079623,-500.0,0.00013917,2]
[332065543,1720947079633,-500.0,0.00013917,2]
[332065544,1720947079642,-597.66,0.00013917,2]
[332065545,1720947079652,-500.0,0.00013917,2]
[332065546,1720947079662,-1201.98,0.00013917,2]
[332065547,1720947079671,-500.0,0.00013917,2]
[332065548,1720947079681,-500.0,0.00013917,2]
[332065549,1720947079690,-500.0,0.00013917,2]
[332065550,1720947079700,-667.26,0.00013917,2]
[332065551,1720947079710,-958.34,0.00013917,2]
[332065552,1720947079719,-500.0,0.00013917,2]
[332065553,1720947079728,-500.0,0.00013917,2]
[332065554,1720947079737,-1016.75,0.00013917,2]
[332065555,1720947079747,-637.35753105,0.00013917,2]
[332065556,1720947079756,-978.03,0.00013917,2]
[332065557,1720947079768,-607.39,0.00013917,2]
[332065558,1720947079779,-500.0,0.00013917,2]
[332065559,1720947079789,-500.0,0.00013917,2]
[332065560,1720947079798,-951.55,0.00013917,2]
[332065561,1720947079808,-849.47,0.00013917,2]
[332065562,1720947079818,-151.0,0.00013917,2]
[332065563,1720947079827,-1097.99,0.00013917,2]
[332065564,1720947079838,-194.916578,0.00013917,2]
[332065565,1720947079847,-500.0,0.00013917,2]
[332065566,1720947079856,-1336.9,0.00013917,2]
[332065567,1720947079866,-1252.98,0.00013917,2]
[332065568,1720947079875,-500.0,0.00013917,2]
[332065569,1720947079884,-151.0,0.00013917,2]
[332065570,1720947079894,-203.16964359,0.00013917,2]
[332065571,1720947079904,-575.08,0.00013917,2]
[332065572,1720947079914,-701.0,0.00013917,2]
[332065573,1720947079923,-634.68,0.00013917,2]
[332065574,1720947079933,-571.02812398,0.00013917,2]
[332065575,1720947079943,-500.0,0.00013917,2]
[332065576,1720947079952,-729.85,0.00013917,2]
[332065577,1720947079962,-500.0,0.00013917,2]
[332065578,1720947079972,-760.39,0.00013917,2]
[332065579,1720947079981,-500.0,0.00013917,2]
[332065580,1720947079990,-500.0,0.00013917,2]
[332065581,1720947080000,-567.9,0.00013917,2]
[332065582,1720947080009,-196.29494122,0.00013917,2]
[332065583,1720947080020,-500.0,0.00013917,2]
[332065584,1720947080029,-500.0,0.00013917,2]
[332065585,1720947080040,-572.49,0.00013917,2]
[332065586,1720947080049,-500.0,0.00013917,2]
[332065587,1720947080059,-904.83,0.00013917,2]
[332065588,1720947080068,-500.0,0.00013917,2]
[332065589,1720947080077,-904.78,0.00013917,2]
[332065590,1720947080087,-500.0,0.00013917,2]
[332065591,1720947080096,-500.0,0.00013917,2]
[332065592,1720947080105,-509.21,0.00013917,2]
[332065593,1720947080115,-500.0,0.00013917,2]
[332065594,1720947080124,-682.68,0.00013917,2]
[332065595,1720947080133,-1095.11,0.00013917,2]
[332065596,1720947080143,-509.03,0.00013917,2]
[332065597,1720947080152,-500.0,0.00013917,2]
[332065598,1720947080162,-500.0,0.00013917,2]
[332065599,1720947080171,-500.0,0.00013917,2]
[332065600,1720947080180,-500.0,0.00013917,2]
[332065601,1720947080190,-756.52,0.00013917,2]
[332065602,1720947080199,-784.66,0.00013917,2]
[332065603,1720947080209,-323.38879311,0.00013917,2]
[332065604,1720947080218,-1185.22,0.00013917,2]
[332065605,1720947080227,-925.63,0.00013917,2]
[332065606,1720947080237,-638.28,0.00013917,2]
[332065607,1720947080247,-297.936491,0.00013917,2]
[332065608,1720947080256,-500.0,0.00013917,2]
[332065609,1720947080266,-957.88,0.00013917,2]
[332065610,1720947080275,-404.07034206,0.00013917,2]
[332065611,1720947080284,-844.6,0.00013917,2]
[332065612,1720947080293,-297.936491,0.00013917,2]
[332065613,1720947080302,-500.0,0.00013917,2]
[332065614,1720947080311,-913.64,0.00013917,2]
[332065615,1720947080320,-500.0,0.00013917,2]
[332065616,1720947080330,-1051.87,0.00013917,2]
[332065617,1720947080339,-507.28,0.00013917,2]
[332065618,1720947080349,-622.1,0.00013917,2]
[332065619,1720947080358,-939.55,0.00013917,2]
[332065620,1720947080367,-860.51,0.00013917,2]
[332065621,1720947080376,-713.47,0.00013917,2]
[332065622,1720947080386,-189.13,0.00013917,2]
[332065623,1720947080395,-500.0,0.00013917,2]
[332065624,1720947080405,-1114.15,0.00013917,2]
[332065625,1720947080414,-500.0,0.00013917,2]
[332065626,1720947080423,-500.0,0.00013917,2]
[332065627,1720947080431,-1016.99369421,0.00013917,2]
[332065628,1720947081421,-344.10978337,0.0001337,2]
[332065629,1720947081433,-548.92133815,0.0001337,2]
[332065630,1720947081444,-686.6132303,0.0001337,2]
[332065631,1720947081456,-906.17357973,0.0001337,2]
[332065632,1720947081467,-47514.18206845,0.0001337,2]
[332065633,1720947081477,-132.20630579,0.00013917,2]
[332065634,1720947081489,-500.0,0.00013917,2]
[332065635,1720947081499,-637.98,0.00013917,2]
[332065636,1720947081508,-990.56,0.00013917,2]
[332065637,1720947081519,-500.0,0.00013917,2]
[332065638,1720947081529,-1660.12,0.00013917,2]
[332065639,1720947081539,-355.629917,0.00013917,2]
[332065640,1720947081549,-1165.53,0.00013917,2]
[332065641,1720947081560,-500.0,0.00013917,2]
[332065642,1720947081570,-500.0,0.00013917,2]
[332065643,1720947081580,-772.82,0.00013917,2]
[332065644,1720947081590,-500.0,0.00013917,2]
[332065645,1720947081600,-500.0,0.00013917,2]
[332065646,1720947081610,-355.629917,0.00013917,2]
[332065647,1720947081619,-500.0,0.00013917,2]
[332065648,1720947081629,-500.0,0.00013917,2]
[332065649,1720947081638,-846.67,0.00013917,2]
[332065650,1720947081648,-780.44,0.00013917,2]
[332065651,1720947081658,-817.86,0.00013917,2]
[332065652,1720947081667,-500.0,0.00013917,2]
[332065653,1720947081677,-738.59,0.00013917,2]
[332065654,1720947081687,-500.0,0.00013917,2]
[332065655,1720947081697,-747.33,0.00013917,2]
[332065656,1720947081706,-393.35804039,0.00013917,2]
[332065657,1720947082741,-106.64195961,0.00013917,2]
[332065658,1720947082753,-500.0,0.00013917,2]
[332065659,1720947082764,-500.0,0.00013917,2]
[332065660,1720947082773,-500.0,0.00013917,2]
[332065661,1720947082783,-579.35,0.00013917,2]
[332065662,1720947082793,-1099.8,0.00013917,2]
[332065663,1720947082803,-1199.27631315,0.00013917,2]
[332065664,1720947082825,-34.22368685,0.00013917,2]
[332065665,1720947082834,-252.66837437,0.00013917,2]
[332065666,1720947082846,-683.98162563,0.00013917,2]
[332065667,1720947082855,-500.0,0.00013917,2]
[332065668,1720947082864,-678.54,0.00013917,2]
[332065669,1720947082873,-510.01,0.00013917,2]
[332065670,1720947082882,-500.0,0.00013917,2]
[332065671,1720947082891,-294.66687337,0.00013917,2]
[332065672,1720947082902,-504.85312663,0.00013917,2]
[332065673,1720947082912,-983.06,0.00013917,2]
[332065674,1720947082921,-500.0,0.00013917,2]
[332065675,1720947082930,-560.27,0.00013917,2]
[332065676,1720947082939,-638.34,0.00013917,2]
[332065677,1720947082948,-500.0,0.00013917,2]
[332065678,1720947082957,-500.0,0.00013917,2]
[332065679,1720947082967,-1070.73,0.00013917,2]
[332065680,1720947082977,-500.0,0.00013917,2]
[332065681,1720947082986,-500.0,0.00013917,2]
[332065682,1720947082996,-500.0,0.00013917,2]
[332065683,1720947083006,-500.0,0.00013917,2]
[332065684,1720947083016,-151.0,0.00013917,2]
[332065685,1720947083026,-773.87,0.00013917,2]
[332065686,1720947083035,-151.0,0.00013917,2]
[332065687,1720947083044,-914.03,0.00013917,2]
[332065688,1720947083054,-1043.98,0.00013917,2]
[332065689,1720947083063,-571.39,0.00013917,2]
[332065690,1720947083071,-500.0,0.00013917,2]
[332065691,1720947083080,-500.0,0.00013917,2]
[332065692,1720947083090,-833.58,0.00013917,2]
[332065693,1720947083099,-816.75,0.00013917,2]
[332065694,1720947083107,-500.0,0.00013917,2]
[332065695,1720947083116,-1418.44,0.00013917,2]
[332065696,1720947083125,-708.02,0.00013917,2]
[332065697,1720947083134,-1584.7,0.00013917,2]
[332065698,1720947083143,-500.0,0.00013917,2]
[332065699,1720947083152,-500.0,0.00013917,2]
[332065700,1720947083162,-500.0,0.00013917,2]
[332065701,1720947083171,-500.0,0.00013917,2]
[332065702,1720947083180,-500.0,0.00013917,2]
[332065703,1720947083189,-763.32,0.00013917,2]
[332065704,1720947083199,-500.0,0.00013917,2]
[332065705,1720947083208,-500.0,0.00013917,2]
[332065706,1720947083218,-666.0,0.00013917,2]
[332065707,1720947083227,-635.69,0.00013917,2]
[332065708,1720947083236,-500.0,0.00013917,2]
[332065709,1720947083246,-664.93,0.00013917,2]
[332065710,1720947083255,-935.55,0.00013917,2]
[332065711,1720947083265,-500.0,0.00013917,2]
[332065712,1720947083274,-500.0,0.00013917,2]
[332065713,1720947083283,-500.0,0.00013917,2]
[332065714,1720947083294,-1460.2,0.00013917,2]
[332065715,1720947083304,-1032.43,0.00013917,2]
[332065716,1720947083313,-500.0,0.00013917,2]
[332065717,1720947083322,-1904.64,0.00013917,2]
[332065718,1720947083332,-711.57,0.00013917,2]
[332065719,1720947083342,-500.0,0.00013917,2]
[332065720,1720947083351,-500.0,0.00013917,2]
[332065721,1720947083361,-280.224954,0.00013917,2]
[332065722,1720947083369,-639.19,0.00013917,2]
[332065723,1720947083379,-500.0,0.00013917,2]